Cogmind - Beta 14 *** ADVENTURER MODE // 2024.08.08 @ 01:06:01 // Winter2019/RPGLIKE Player: DeepestRoots Result: Self-destructed Performance ------------- Evolutions (2) 1000 Regions Visited (5) 1000 Robots Destroyed (43) 215 Value Destroyed (923) 923 Prototype IDs (26) 520 Alien Tech Used (0) 0 Bonus (130) 130 TOTAL SCORE: 3788 Bonus ------- Follower Combat Kills 25 Aligned with FarCom 300 Friendly Fire -195 Cogmind --------- Core Integrity 600/600 Matter 300/300 Energy 250/250 System Corruption 0% Temperature Cool (0) Movement Rolling (95) Ox1 Location -8/Materials Parts ------- > --- POWER (1) -------- Ion Engine > --- PROPULSION (2) --- Wheel Wheel > --- UTILITY (4) ------ Improved Heat Sink Seismic Detector Shield Generator Splice Drone Bay (6/6) > --- WEAPON (2) ------- EM Pulse Gun EM Pulse Gun > --- INVENTORY (3) ---- Superbattery (1500) Rocket Launcher Deploy-a-Sentry Peak State ------------ > --- POWER ------------ Ion Engine > --- PROPULSION ------- Wheel Wheel > --- UTILITY ---------- Improved Heat Sink Seismic Detector Shield Generator Splice Drone Bay > --- WEAPON ----------- EM Pulse Gun EM Pulse Gun > --- INVENTORY -------- Superbattery Deploy-a-Sentry Deploy-a-Sentry [Rating: 20] Favorites ----------- Power Ion Engine Engine Ion Engine Propulsion Wheel Wheel Wheel Utility Seismic Detector Device Seismic Detector Weapon EM Pulse Gun Energy Gun EM Pulse Gun Ballistic Gun Assault Rifle Build | -11 -10 -10 -10 -9 -8 ------- Run | Yrd Mat Min Exi Min Mat Slots Evolved 5 | 3 1 1 . . . Power . | . . . . . . Propulsion 1 | 1 . . . . . Utility 3 | 1 1 1 . . . Weapon 1 | 1 . . . . . Parts Attached 16 | 9 4 1 2 . . Power 2 | 1 1 . . . . Engine 2 | 1 1 . . . . Core . | . . . . . . Reactor . | . . . . . . Propulsion 4 | 4 . . . . . Treads . | . . . . . . Leg . | . . . . . . Wheel 4 | 4 . . . . . Hover . | . . . . . . Flight . | . . . . . . Utility 5 | 2 2 1 . . . Device 5 | 2 2 1 . . . Storage . | . . . . . . Processor . | . . . . . . Hackware . | . . . . . . Protection . | . . . . . . Artifact . | . . . . . . Weapon 5 | 2 1 . 2 . . Energy Gun 4 | 1 1 . 2 . . Energy Cannon . | . . . . . . Ballistic Gun 1 | 1 . . . . . Ballistic Cannon . | . . . . . . Launcher . | . . . . . . Special Weapon . | . . . . . . Impact Weapon . | . . . . . . Slashing Weapon . | . . . . . . Piercing Weapon . | . . . . . . Special Melee Weapon . | . . . . . . Unidentified Prototypes 1 | . . 1 . . . Parts Lost . | . . . . . . Power . | . . . . . . Propulsion . | . . . . . . Utility . | . . . . . . Weapon . | . . . . . . Highest Loss Streak . | . . . . . . To Critical Strikes . | . . . . . . Average Slot Usage (%) 97 | . 100 100 82 100 100 Engine 11 | . 12 11 11 11 11 Wheel 23 | . 25 24 22 22 22 Device 39 | . 36 38 44 44 44 Energy Gun 19 | . 20 24 4 22 22 Ballistic Gun 1 | . 4 . . . . Peak Build Rating 20 | 9 11 18 20 20 19 Average Rating 13 | 6 10 12 17 19 19 On Entrance 12 | . 9 11 18 20 19 Naked Turns . | . . . . . . Heaviest Build 21 | 9 13 21 21 21 21 Greatest Support 32 | 32 20 20 20 20 20 Greatest Overweight (x) 1 | . . 1 1 1 1 Average Overweight (x) . | . . . . 1 1 Largest Inventory Capacity 3 | 2 2 2 3 3 3 Average Capacity 2 | . 2 2 2 3 3 Most Carried 3 | 2 2 2 3 3 3 Average Carried 2 | . 1 2 2 2 3 Final Capacity 3 | 2 2 2 3 3 3 Final Carried 3 | 2 2 2 3 3 3 Class Distribution -------------------- 92% | Scavenger-Mutant 7% | Mutant Dominant Class ---------------- Scavenger-Mutant | -10/Materials Scavenger-Mutant | -10/Mines Scavenger-Mutant | -10/Exiles Scavenger-Mutant | -9/Mines Scavenger-Mutant | -8/Materials Resources | -11 -10 -10 -10 -9 -8 ----------- Run | Yrd Mat Min Exi Min Mat Matter Collected 463 | 320 106 . . 37 . Remotely . | . . . . . . Salvage Created 1325 | 166 863 154 . 142 . Parts 96 | 11 63 16 . 6 . Haulers Intercepted 2 | . 2 . . . . Recyclers Shooed 1 | . 1 . . . . Parts Field Recycled . | . . . . . . Retrieved Matter . | . . . . . . Parts Self-Destructed . | . . . . . . Prevented . | . . . . . . Kills | -11 -10 -10 -10 -9 -8 ------- Run | Yrd Mat Min Exi Min Mat Combat Hostiles Destroyed 29 | . 19 6 . 4 . Guns 25 | . 16 6 . 3 . AOE 4 | . 3 . . 1 . Classes Destroyed 9 | 3 4 . . 2 . Worker 2 | 1 . 1 . . . Tunneler 3 | 2 . 1 . . . Hauler 2 | . 2 . . . . Recycler 4 | 1 2 . . 1 . Watcher 3 | . 3 . . . . Swarmer 9 | . 3 6 . . . Grunt 19 | . 16 . . 3 . Demolisher 1 | . . . . 1 . Assembled 1 | . . . . 1 . Best Kill Streak 5 | 2 5 3 . 2 . Combat Bots Only 5 | . 5 3 . 2 . Max Kills in Single Turn 3 | 1 3 2 . 2 . Gunslinging 1 | . . 1 . . . Exploded 3 | . 3 . . 1 . Melee . | . . . . . . Uniques/NPCs Destroyed . | . . . . . . Combat | -11 -10 -10 -10 -9 -8 -------- Run | Yrd Mat Min Exi Min Mat Hostile Shots Fired 71 | . 46 15 . 10 . Missed 23 | . 15 4 . 4 . Damage Taken 401 | . 278 53 . 70 . Core 309 | . 209 43 . 57 . Absorbed by Shields 149 | . 100 21 . 28 . Redirected to Core 238 | . 173 28 . 37 . Ignored by Resistances 163 | . 112 22 . 29 . Core Remaining (%) 100 | 100 . . . 100 . Volleys Fired 78 | 10 47 9 . 12 . Largest 2 | 2 2 2 . 2 . Hottest 80 | 60 80 80 . 80 . Shots Fired 156 | 20 94 18 . 24 . Gun 156 | 20 94 18 . 24 . Cannon . | . . . . . . Launcher . | . . . . . . Special . | . . . . . . Kinetic 32 | 10 22 . . . . Thermal . | . . . . . . Explosive . | . . . . . . Electromagnetic 124 | 10 72 18 . 24 . Robot Hit Streak 12 | 11 12 10 . 8 . Robot Miss Streak 6 | 1 6 1 . 1 . Penetration Max . | . . . . . . Secondary Targets 3 | . . 2 . 1 . Max Gunslinging Chain 1 | . . 1 . 1 . Shots Hit Robots 106 | 15 61 12 . 18 . Core Hits 54 | 4 32 8 . 10 . Critical Kills . | . . . . . . Critical Parts Destroyed . | . . . . . . Critical Strikes . | . . . . . . Melee Attacks . | . . . . . . Impact . | . . . . . . Slashing . | . . . . . . Piercing . | . . . . . . Sneak Attacks . | . . . . . . Combat Hostiles . | . . . . . . Follow-up Attacks . | . . . . . . Damage Inflicted 1886 | 250 1079 152 . 405 . Guns 1461 | 210 873 152 . 226 . Cannons . | . . . . . . Explosions 421 | 40 202 . . 179 . Melee . | . . . . . . Ramming 4 | . 4 . . . . Kinetic 265 | 100 165 . . . . Thermal 421 | 40 202 . . 179 . Explosive . | . . . . . . Electromagnetic 1196 | 110 708 152 . 226 . Impact . | . . . . . . Slashing . | . . . . . . Piercing . | . . . . . . Highest Corruption 1 | . 1 1 1 1 . Average Corruption 1 | . 1 1 1 1 . Corruption Purged . | . . . . . . Corruption Blocked . | . . . . . . Effects 4 | . . . 1 3 . Message Errors 2 | . . . . 2 . Matter Fused 1 | . . . . 1 . Heat Flow Errors 1 | . . . 1 . . Overload Shots . | . . . . . . Overflow Damage . | . . . . . . Projectiles . | . . . . . . Explosions . | . . . . . . Melee . | . . . . . . Knockbacks . | . . . . . . Impact . | . . . . . . Kinetic . | . . . . . . Secondary . | . . . . . . Self-Inflicted Damage 116 | . 104 . . 12 . Shots 3 | . 2 . . 1 . Rammed 1 | . 1 . . . . Targets Rammed 1 | . 1 . . . . Kicked . | . . . . . . Crushed . | . . . . . . Highest Temperature 46 | . 46 . . . . Average Temperature 24 | . 24 . . . . Received Heat Transfer 154 | . 146 . . 8 . Siege Activations . | . . . . . . Robots Corrupted . | . . . . . . Combat Hostiles . | . . . . . . Parts Fried 4 | . 4 . . . . Impact Corruptions . | . . . . . . Robots Melted . | . . . . . . Combat Hostiles . | . . . . . . Parts Melted . | . . . . . . Heat Transferred 450 | . 250 . . 200 . Parts Sabotaged . | . . . . . . Parts Stolen . | . . . . . . Parts Stripped . | . . . . . . Power Chain Reactions 4 | 1 2 . . 1 . Alert | -11 -10 -10 -10 -9 -8 ------- Run | Yrd Mat Min Exi Min Mat Peak Influence 393 | 20 393 240 . 124 34 Initial 86 | . 11 86 . . 34 Average 126 | 10 171 217 . 24 34 Maximum Alert Level 1 | . 1 1 . . . Low Security (%) 67 | 100 61 21 . 100 100 Level 1 32 | . 38 78 . . . Level 2 . | . . . . . . Level 3 . | . . . . . . Level 4 . | . . . . . . Level 5 . | . . . . . . High Security . | . . . . . . Max Security . | . . . . . . Squads Dispatched 5 | . 5 . . . . Investigation 5 | . 5 . . . . Extermination . | . . . . . . Reinforcement . | . . . . . . Assault . | . . . . . . Garrison . | . . . . . . Intercept . | . . . . . . Searches Triggered . | . . . . . . Construction Impeded . | . . . . . . Haulers Reinforced . | . . . . . . Active Scanning Responses . | . . . . . . Cargo Convoy Interrupts . | . . . . . . Stealth | -11 -10 -10 -10 -9 -8 --------- Run | Yrd Mat Min Exi Min Mat Distress Signals . | . . . . . . Communications Jammed . | . . . . . . Distress Signals . | . . . . . . Times Spotted 40 | . 26 6 . 8 . Peak Tracking Total 3 | . 3 3 . 3 . Tactical Retreats . | . . . . . . Traps | -11 -10 -10 -10 -9 -8 ------- Run | Yrd Mat Min Exi Min Mat Traps Triggered 1 | . 1 . . . . Indirectly . | . . . . . . Trap Hack Attempts . | . . . . . . Triggered . | . . . . . . Disarmed 3 | . 3 . . . . Reprogrammed . | . . . . . . Reused . | . . . . . . Traps Extracted . | . . . . . . Installed . | . . . . . . Triggered . | . . . . . . Machines | -11 -10 -10 -10 -9 -8 ---------- Run | Yrd Mat Min Exi Min Mat Machines Disabled 3 | . 3 . . . . Max in Single Turn 2 | . 2 . . . . Machines Repaired . | . . . . . . Machines Dismantled . | . . . . . . Machines Sabotaged . | . . . . . . Overloaded Fab Kills . | . . . . . . Hacking | -11 -10 -10 -10 -9 -8 --------- Run | Yrd Mat Min Exi Min Mat Machines Accessed 14 | . 10 1 2 . 1 Terminals 9 | . 8 . . . 1 Fabricators . | . . . . . . Repair Stations . | . . . . . . Recycling Units 2 | . 2 . . . . Scanalyzers . | . . . . . . Garrison Access . | . . . . . . Total Hacks 42 | . 38 1 2 . 1 Successful 34 | . 30 1 2 . 1 Failed 8 | . 8 . . . . Catastrophic 1 | . 1 . . . . Database Lockouts . | . . . . . . Manual 21 | . 19 . 1 . 1 Terminals 32 | . 31 . . . 1 Fabricators . | . . . . . . Repair Stations . | . . . . . . Recycling Units 7 | . 7 . . . . Scanalyzers . | . . . . . . Garrison Access . | . . . . . . Terminal Hacks 20 | . 16 1 2 . 1 Record 2 | . 1 . 1 . . Robot Analysis 2 | . 2 . . . . Prototype ID Bank 1 | . 1 . . . . Open Door 1 | . . 1 . . . Branch Access Points 2 | . 1 . . . 1 Terminal Index 1 | . 1 . . . . Alert Level 1 | . 1 . . . . Locate Traps 1 | . 1 . . . . Disarm Traps 1 | . 1 . . . . Dispatch Records 2 | . 2 . . . . Surveillance Status 1 | . 1 . . . . Investigation Status 1 | . 1 . . . . Hauler Manifests 2 | . 2 . . . . Zone Layout 1 | . 1 . . . . Derelict Proto ID Bank 1 | . . . 1 . . Fabricator Hacks . | . . . . . . Repair Station Hacks . | . . . . . . Recycling Unit Hacks 3 | . 3 . . . . Report Inventory 1 | . 1 . . . . Retrieve Components 2 | . 2 . . . . Scanalyzer . | . . . . . . Garrison Access Hacks . | . . . . . . Unauthorized Hacks 9 | . 9 . . . . Terminals 7 | . 7 . . . . Track 3 | . 3 . . . . Botnet 3 | . 3 . . . . Disrupt 1 | . 1 . . . . Fabricators . | . . . . . . Repair Stations . | . . . . . . Recycling Units 2 | . 2 . . . . Reject 1 | . 1 . . . . Mask 1 | . 1 . . . . Scanalyzers . | . . . . . . Garrison Access . | . . . . . . Data Cores Recovered . | . . . . . . Used . | . . . . . . Hacking Detections 8 | . 8 . . . . Full Trace Events 6 | . 6 . . . . Feedback Events 1 | . 1 . . . . Corruption 1 | . 1 . . . . Feedback Blocked . | . . . . . . Robot Schematics Acquired . | . . . . . . Robots Built . | . . . . . . Authchips . | . . . . . . Time . | . . . . . . Total Robot Build Rating . | . . . . . . Part Schematics Acquired . | . . . . . . Parts Built . | . . . . . . Authchips . | . . . . . . Time . | . . . . . . Total Part Build Rating . | . . . . . . Parts Repaired . | . . . . . . Time . | . . . . . . Parts Recycled . | . . . . . . Recycled Matter . | . . . . . . Retrieved Matter . | . . . . . . Retrieved Components 19 | . 19 . . . . Parts Scanalyzed . | . . . . . . Part Schematics Acquired . | . . . . . . Parts Damaged . | . . . . . . Bothacking | -11 -10 -10 -10 -9 -8 ------------ Run | Yrd Mat Min Exi Min Mat Used RIF Installer . | . . . . . . Robots Hacked . | . . . . . . Non-combat . | . . . . . . Combat . | . . . . . . Robot Hacks Applied . | . . . . . . Relay Couplers Released . | . . . . . . Fabnet Peak Effective % . | . . . . . . Robots Rewired . | . . . . . . Allies Hacked . | . . . . . . Hacks Repelled . | . . . . . . Allies | -11 -10 -10 -10 -9 -8 -------- Run | Yrd Mat Min Exi Min Mat Total Allies 3 | . . 3 . . . Largest Group 3 | . . 3 3 3 1 Highest-Rated Group 40 | . . 40 40 40 16 Highest-Rated Ally 16 | . . 16 16 16 16 Total Orders 1 | . . 1 . . . RETURN 1 | . . 1 . . . Ally Attacks 27 | . . . . 27 . Total Damage 420 | . . . . 420 . Kills 7 | . . . . 7 . Allies Corrupted . | . . . . . . Allies Melted . | . . . . . . Turrets Deployed 1 | . . . . 1 . Intel | -11 -10 -10 -10 -9 -8 ------- Run | Yrd Mat Min Exi Min Mat Robot Analysis Total 2 | . 2 . . . . Derelict Logs Recovered 3 | . . 2 . 1 . Drone Launches 1 | . . 1 . . . Drone Recoveries 1 | . . 1 . . . Exploration | -11 -10 -10 -10 -9 -8 ------------- Run | Yrd Mat Min Exi Min Mat Turns Passed 2379 | 136 940 391 302 533 77 Spaces Moved 2240 | 95 864 421 315 465 80 Core 2 | 2 . . . . . Treads . | . . . . . . Legs . | . . . . . . Wheels 2238 | 93 864 421 315 465 80 Hover . | . . . . . . Flight . | . . . . . . Fastest Speed 50 | 50 80 80 80 95 95 Average Speed 84 | 94 80 82 81 95 95 Slowest Speed 100 | 100 80 95 95 95 95 Overloaded Moves . | . . . . . . Propulsion Burnouts . | . . . . . . Robots Hopped 1 | . . . . 1 . Cave-ins Triggered . | . . . . . . Exploration Rate (%) 58 | 4 97 91 59 92 10 Regions Visited 5 Branch Regions 3 Pre-discovered Areas 4 | . . 1 1 2 . Known Exits Taken 1 | . 1 . . . . Unknown Exits Taken 4 | 1 . 1 1 1 . Scrap Searched 3 | . . 1 . 2 . Spaces Dug . | . . . . . . Terrain Destroyed 52 | 5 40 . . 7 . Melee . | . . . . . . Projectile . | . . . . . . AOE 52 | 5 40 . . 7 . Terrain Rammed . | . . . . . . Walls Destroyed . | . . . . . . Machines Disabled . | . . . . . . Actions | -11 -10 -10 -10 -9 -8 --------- Run | Yrd Mat Min Exi Min Mat Total 2556 | 117 1020 447 361 531 80 Wait 180 | 1 80 17 35 47 . Move 2233 | 94 863 420 314 462 80 Hop 1 | . . . . 1 . Pick Up 8 | 2 2 . 3 1 . Fast Attach 14 | 8 3 1 2 . . Attach . | . . . . . . Detach 1 | . 1 . . . . Swap 2 | 1 1 . . . . Drop 11 | 1 5 . 4 1 . Fire 78 | 10 47 9 . 12 . Melee . | . . . . . . Ram 1 | . 1 . . . . Kick . | . . . . . . Crush . | . . . . . . Escape Stasis . | . . . . . . Rewire . | . . . . . . Trap . | . . . . . . Miscellaneous 27 | . 17 . 3 7 . Route ------- -11/Scrapyard -10/Materials (discovered 5 exits: [*Mat x3] / *Min x2) -10/Mines (discovered 2 exits: [*Mat] / *Exi) -10/Exiles -9/Mines -8/Materials History --------- Turn | Location | Event 2 | -11/Scrapyard | Met Revision 17 6 | -11/Scrapyard | Upgraded with Propulsion slot (x1) 6 | -11/Scrapyard | Upgraded with Utility slot (x1) 6 | -11/Scrapyard | Upgraded with Weapon slot (x1) 13 | -11/Scrapyard | Discovered new exit (range 15) 137 | -11/Scrapyard | Entered Materials 192 | -10/Materials | Upgraded with Utility slot (x1) 410 | -10/Materials | Discovered new exit (range 16) 463 | -10/Materials | Discovered new exit (range 8) 481 | -10/Materials | Build established: Scavenger-Mutant 519 | -10/Materials | Identified exit to Mines 809 | -10/Materials | Discovered new exit (range 10) 831 | -10/Materials | Reached level 2 1077 | -10/Materials | Entered Mines 1079 | -10/Mines | Reached level 3 1106 | -10/Mines | Learned Materials emergency access door positions 1137 | -10/Mines | Assisted by bots powering up and referring to "LRC-V3" 1186 | -10/Mines | Learned location of Zion (-6) 1367 | -10/Mines | Discovered new exit (range 9) 1390 | -10/Mines | Found the Drone Emporium 1393 | -10/Mines | Upgraded with Utility slot (x1) 1393 | -10/Mines | Found Prototype Device 1393 | -10/Mines | Identified Splice Drone Bay 1446 | -10/Mines | Deemed a non-threat by the Exiles lab entrance 1446 | -10/Mines | Discovered new exit (range 5) 1468 | -10/Mines | Entered Exiles 1468 | -10/Exiles | Accompanied by 3 allies 1482 | -10/Exiles | Discovered new exit (range 15) 1510 | -10/Exiles | Met 8R-AWN 1523 | -10/Exiles | Met EX-HEX 1546 | -10/Exiles | Met EX-BIN 1555 | -10/Exiles | Aligned with FarCom system 1555 | -10/Exiles | Given EX-Vault access code 1575 | -10/Exiles | Opened EX-Vault 1578 | -10/Exiles | Found Superbattery 1591 | -10/Exiles | Found Deploy-a-Sentry 1592 | -10/Exiles | Found Deploy-a-Sentry 1610 | -10/Exiles | Warned to stay clear of 0b10 Research branches 1671 | -10/Exiles | Met EX-DEC 1770 | -10/Exiles | Stole two prototypes: Superbattery, Deploy-a-Sentry 1770 | -10/Exiles | Entered Mines 1770 | -9/Mines | Accompanied by 3 allies 1772 | -9/Mines | Reached level 4 1797 | -9/Mines | Assembled infested the area 1802 | -9/Mines | Assisted by a Guerilla fighting off Assembled 1897 | -9/Mines | Learned location of Storage (-9) 2030 | -9/Mines | Received a Rocket Launcher from a helpful Derelict 2069 | -9/Mines | DAS Turret deployed 2292 | -9/Mines | Discovered new exit (range 6) 2303 | -9/Mines | Entered Materials 2303 | -8/Materials | Accompanied by 1 ally 2305 | -8/Materials | Reached level 5 2305 | -8/Materials | Reached level 6 2380 | -8/Materials | Self-destructed Last Messages --------------- 02283_ Trooper 1a destroyed. 02283_ G-34 Mercenary destroyed. 02284_ K-01 Serf collects debris. 02285_ G-34 Mercenary Aluminum Leg blasted off. 02287_ G-34 Mercenary destroyed. 02290_ DAS Turret heat damages core (-31). 02291_ DAS Turret destroyed. 02292_ EXIT=FOUND 02295_ Used Protomatter to restore core integrity (+53) 02296_ Used Protomatter to restore part integrity (+11) LOCATION=UNKNOWN GOAL=ESCAPE 02303_ Receiving FarCom transmissions... Loading Materials emergency access points (x9)... 02305_ Reached level 5. 02305_ Reached level 6. 02380_ Connecting with Terminal... 02380_ Current location identified: Materials >>Access(Branch) No branch access points found. Map ----- +----------------------------------------------------+ | ?????????????????????????????????? | | ?????????????????????????????????? | | ?????????????????????????????????? | | ????????????????+????????????????? | | ?????????????????????????????????? | | ?????????????????????????????????? | | ?????????????????????????????????? | | ?????????????????????????????????? | | ?????????????????????????????????? | | ?????????????????????????????????? | | ?????????????????????????????????? | | ?????????????????????????????????? | | ?????????????????????????????????? | | ## ??????????????????????????????? | | ??????????????????????????????? | | ???????????????????????????????? | | ?????????????????????????####### | | #?????????????????????????#] # | | #?????????????????????????# =# | | #?????????????????????????# ] # | | #?????????????????????????# # | | #?????????????????????????# """ # | | #???????????????????###+### """ # | | #???????????????#+#?# # """ # | | ################# ### # # | | T@ + """ # | | ##################### g # """ # | | ##???????????????????# # """ # | | ?????????????????????####### # | | ???????????????????????????####### | | | | | | | | | | | | | | | | | | | | | | | | | | | | | | | | | | | | | | | | | +----------------------------------------------------+ Best States ------------- Heat Dissipation 39 Energy Generation 10 Energy Capacity 250 Matter Stores 300 Matter Capacity 300 Sight Range 16 Terrain Scan Range 16 Terrain Scan Density 10 Resistance: KI 20 Resistance: TH 20 Resistance: EX 20 Resistance: EM 20 Resistance: I 20 Resistance: S 20 Resistance: P 20 Evasion (%) 44 Offensive Hacking 10 Item Schematics ----------------- None Robot Schematics ------------------ None Fabricated ------------ Nothing Alien Tech Used ----------------- None Achievements -------------- None Challenges ------------ None RPGLIKE | -11 -10 -10 -10 -9 -8 --------- Run | Yrd Mat Min Exi Min Mat Levels Raised 5 | . 1 1 . 1 2 XP Earned 12858 | 4000 2610 1220 350 1386 3292 XP Spent 4900 | 2250 800 1100 750 . . Upgrades 8 | 5 1 1 1 . . Propulsion Slot 1 | 1 . . . . . Utility Slot 3 | 1 1 1 . . . Weapon Slot 1 | 1 . . . . . Inventory Capacity 3 | 2 . . 1 . . Protomatter Created 401 | . 328 9 . 64 . Integrity Restored 440 | . 286 . 60 94 . Core 309 | . 205 . 47 57 . Parts 131 | . 81 . 13 37 . Protomatter Decayed 119 | . 42 9 22 46 . Game ------ Seed ThrowingMeleePrototype Manual? 0 Play Time 00:41:48 Cumulative 365.7 hours Start 2024.08.07 @ 21:45:20 End 2024.08.08 @ 01:06:01 Sessions 3 Manual Loads 0 Difficulty Adventurer Special Mode Winter2019/RPGLIKE Game No. 27 Rogue 8 Adventurer 10 Explorer 9 Win Type - Total 18 Types 14/0/2/1/0/1/0/0/0 Lore% 47 Gallery% 64 Achievement% 67 Wizard Run 0 Options --------- Layout 0 ASCII 0 Keyboard 0 Movement Mouse Keybinds 0 Fullscreen 1 Font 36/Terminus++ Map View 76x50 Zoom Use 0% Tactical HUD 1 Map Filters NONE Filters NONE Steam 0 RUN: f3a6e7f2-b04b-48a4-a56d-f456fe576e26